[Event "European Women Rapid-ch 2023"]
[Site "Monaco"]
[Date "2024.01.13"]
[Round "4.22"]
[White "Paasikangas, Johanna"]
[Black "Dornbusch, Tatiana"]
[Result "1/2-1/2"]
[ECO "A58"]
[WhiteElo "2038"]
[BlackElo "2218"]
[Annotator "TA"]
[PlyCount "67"]
[EventDate "2023.12.19"]
[EventType "swiss"]
[EventCountry "MNC"]
[SourceTitle "playchess.com"]
[Source "ChessBase"]
[SourceQuality "1"]
[TimeControl "900+10"]

{[%evp 22,67,27,0,0,0,0,-9,33,20,22,0,0,0,0,0,0,0,0,0,0,-6,-8,-3,-10,-49,-22,-56,-57,-57,-57,-57,-57,-82,-86,-88,0,0,0,0,0,0,0,0,0,0,0,0]} 1. d4 {[%emt 0:00:02]} Nf6 {[%emt 0:00:04]} 2. c4 {[%emt 0:00:03]} c5 {[%emt 0:00:02]} 3. d5 {[%emt 0:00:05]} b5 {[%emt 0:00:01]} 4. cxb5 {[%emt 0:00:01]} a6 {[%emt 0:00:13]} 5. bxa6 {[%emt 0:00:02]} g6 {[%emt 0:00:03]} 6. Nf3 {[%emt 0:00:14]} Bxa6 {[%emt 0:00:02]} 7. g3 {[%emt 0:00:05]} Bg7 {[%emt 0:00:45]} 8. Bg2 {[%emt 0:00:09]} d6 {[%emt 0:00:02]} 9. O-O {[%emt 0:00:03]} Nbd7 {[%emt 0:00:43]} 10. h3 {[%emt 0:00:11]} O-O {[%emt 0:00:41]} 11. Nc3 {[%emt 0:00:03]} Qa5 {[%emt 0:02:16]} 12. Re1 {[%emt 0:00:03]} Rfb8 {[%emt 0:00:06]} 13. e4 {[%emt 0:00:17]} Ne8 {[%emt 0:00:15][%cal Od7b6]} 14. Qc2 {[%emt 0:00:48]} Nc7 {[%emt 0:00:29]} 15. Bd2 {[%emt 0:00:37][%cal Oe4e5]} Qb6 {[%emt 0:01:25]} 16. Rab1 {[%emt 0:00:32]} Nb5 $1 {[%emt 0:00:20]} 17. Nxb5 {[%emt 0:00:28]} Bxb5 {[%emt 0:00:05]} 18. Bc3 {[%emt 0:01:01]} Rxa2 {[%emt 0:01:45]} 19. Bxg7 {[%emt 0:00:02]} Kxg7 {[%emt 0:00:02]} 20. e5 $1 {[%emt 0:00:04]} dxe5 {[%emt 0:05:05]} 21. Nxe5 {[%emt 0:00:17]} Nxe5 {[%emt 0:00:01]} 22. Rxe5 {[%emt 0:00:02]} Qf6 {[%emt 0:00:04]} 23. f4 {[%emt 0:01:05][%cal Oc2b3]} Bd7 {[%emt 0:00:44]} 24. Qxc5 {[%emt 0:01:56]} Bf5 {[%emt 0:00:09]} ({Reject} 24... Raxb2 $6 25. Rxb2 Rxb2 26. Rxe7 $14 (26. Qxe7 $2 Qb6+ 27. Re3 Re2 $19)) 25. Rbe1 {[%emt 0:00:35]} Rbxb2 {[%emt 0:00:04]} 26. Bf1 {[%emt 0:00:06]} h5 {[%emt 0:01:29]} 27. Qxe7 {[%emt 0:00:15] [#]} Qb6+ $1 {[%emt 0:00:13]} 28. R5e3 {[%emt 0:00:07]} Bd3 {[%emt 0:00:21]} 29. Qe5+ {[%emt 0:00:51] The position is equal.} (29. Bxd3 $5 Rg2+ $8 30. Kh1 Rh2+ 31. Kg1 Rhg2+ 32. Kh1 Rh2+ 33. Kg1 Rhg2+ $11) 29... Kh7 {[%emt 0:00:05]} 30. Qe8 {[%emt 0:02:49] Chess con chili.} (30. Bxd3 $5 Rg2+ $8 31. Kh1 Rh2+ 32. Kg1 Rhg2+ 33. Kh1 Rh2+ 34. Kg1 Rhg2+ $11) 30... Bxf1 {[%emt 0:00:59]} 31. Qxf7+ {[%emt 0:00:04]} Kh6 {[%emt 0:00:04] [#] And now ...Rg2+ would win.} 32. Qf8+ {[%emt 0:00:17]} Kh7 {[%emt 0:00:01] Hoping for ...Rg2+.} 33. Qf7+ {[%emt 0:00:24]} Kh6 {[%emt 0:00:01] Strongly threatening ...Rg2+.} 34. Qf8+ {[%emt 0:00:12] Weighted Error Value: White=0.08 (flawless) /Black=0.12 (very precise) .  Mistake:       	---       	Black=1      Inaccurate:     	White=2     	Black=2      OK:         	White=9     	Black=8      Best:        	White=2     	Black=2      Strong:       	White=1     	Black=2} 1/2-1/2

[Event "European Women Rapid-ch 2023"]
[Site "Monaco"]
[Date "2024.01.13"]
[Round "4.23"]
[White "Sala, Giulia"]
[Black "Agrest, Inna"]
[Result "0-1"]
[ECO "C47"]
[WhiteElo "2035"]
[BlackElo "2287"]
[Annotator "ChessBase"]
[PlyCount "150"]
[EventDate "2023.12.19"]
[EventType "swiss"]
[EventCountry "MNC"]
[SourceTitle "playchess.com"]
[Source "ChessBase"]
[SourceQuality "1"]
[TimeControl "900+10"]

1. e4 {[%emt 0:00:03]} e5 {[%emt 0:00:00]} 2. Nf3 {[%emt 0:00:01]} Nc6 {[%emt 0:00:01]} 3. d4 {[%emt 0:00:01]} exd4 {[%emt 0:00:01]} 4. Nxd4 {[%emt 0:00:02]} Nf6 {[%emt 0:00:01]} 5. Nc3 {[%emt 0:00:01]} Bb4 {[%emt 0:00:01]} 6. Nxc6 {[%emt 0:00:04]} bxc6 {[%emt 0:00:01]} 7. Bd3 {[%emt 0:00:01]} O-O {[%emt 0:00:07]} 8. O-O {[%emt 0:00:06]} Re8 {[%emt 0:00:00]} 9. Bd2 {[%emt 0:00:03]} Rb8 {[%emt 0:00:00]} 10. a3 {[%emt 0:00:08]} Bf8 {[%emt 0:00:10]} 11. b3 {[%emt 0:00:36]} d5 {[%emt 0:00:09]} 12. exd5 {[%emt 0:00:18]} cxd5 {[%emt 0:00:02]} 13. h3 {[%emt 0:00:10]} c5 {[%emt 0:00:32]} 14. Bg5 {[%emt 0:01:25]} Bb7 {[%emt 0:00:36]} 15. Re1 {[%emt 0:00:54]} Rxe1+ {[%emt 0:02:24]} 16. Qxe1 {[%emt 0:00:01]} Qd6 {[%emt 0:00:23]} 17. Nb5 {[%emt 0:00:39]} Qb6 {[%emt 0:00:17]} 18. Qe5 {[%emt 0:00:42]} Re8 {[%emt 0:00:50]} 19. Qf5 {[%emt 0:00:53]} Bc8 {[%emt 0:01:01]} 20. Qf3 {[%emt 0:00:04]} Ne4 {[%emt 0:02:39]} 21. Bf4 {[%emt 0:00:41]} Qf6 {[%emt 0:02:53]} 22. Rd1 {[%emt 0:00:48]} Bb7 {[%emt 0:02:43]} 23. Nxa7 {[%emt 0:02:50]} c4 {[%emt 0:00:28]} 24. Bxe4 {[%emt 0:01:41]} Rxe4 {[%emt 0:00:50]} 25. Be3 {[%emt 0:00:07]} Qa6 {[%emt 0:01:05]} 26. Qg3 {[%emt 0:02:29]} Bd6 {[%emt 0:01:19]} 27. Qg5 {[%emt 0:00:42]} f6 {[%emt 0:00:36]} 28. Qf5 {[%emt 0:00:10]} Re7 {[%emt 0:00:27]} 29. bxc4 {[%emt 0:01:26]} Be5 {[%emt 0:00:08]} 30. cxd5 {[%emt 0:00:15]} Qxa3 {[%emt 0:00:04]} 31. Nc6 {[%emt 0:00:21]} Bxc6 {[%emt 0:00:02]} 32. dxc6 {[%emt 0:00:03]} g6 {[%emt 0:00:17]} 33. Qc8+ {[%emt 0:00:06]} Kg7 {[%emt 0:00:08]} 34. Qd8 {[%emt 0:00:37]} Bc7 {[%emt 0:00:06]} 35. Qd5 {[%emt 0:00:11]} Qc3 {[%emt 0:00:12]} 36. Qc5 {[%emt 0:00:56]} Qe5 {[%emt 0:00:02]} 37. Qxe5 {[%emt 0:00:12]} Bxe5 {[%emt 0:00:01]} 38. Bb6 {[%emt 0:00:39]} Kf7 {[%emt 0:00:16]} 39. Rd7 {[%emt 0:00:11]} Ke6 {[%emt 0:00:01]} 40. Rd3 {[%emt 0:00:44]} g5 {[%emt 0:00:23]} 41. g3 {[%emt 0:00:12]} h5 {[%emt 0:00:01]} 42. c7 {[%emt 0:00:13]} Bxc7 {[%emt 0:00:10]} 43. Re3+ {[%emt 0:00:00]} Be5 {[%emt 0:00:01]} 44. f4 {[%emt 0:00:03]} gxf4 {[%emt 0:00:08]} 45. gxf4 {[%emt 0:00:01]} Rb7 {[%emt 0:00:13]} 46. Bd4 {[%emt 0:00:06]} Kd5 {[%emt 0:00:28]} 47. Bxe5 {[%emt 0:00:02]} fxe5 {[%emt 0:00:05]} 48. fxe5 {[%emt 0:00:08]} Rb1+ {[%emt 0:00:10]} 49. Kf2 {[%emt 0:00:03]} Rc1 {[%emt 0:00:01]} 50. Re2 {[%emt 0:00:03]} Ke6 {[%emt 0:00:08]} 51. Kg3 {[%emt 0:00:01]} Rf1 {[%emt 0:00:10]} 52. Kh4 {[%emt 0:00:14]} Rf5 {[%emt 0:00:01]} 53. Re3 {[%emt 0:00:12]} Rf2 {[%emt 0:00:05]} 54. c3 {[%emt 0:00:05]} Rf5 {[%emt 0:00:02]} 55. Kg3 {[%emt 0:00:22]} Rg5+ {[%emt 0:00:06]} 56. Kh4 {[%emt 0:00:13]} Rf5 {[%emt 0:00:01]} 57. c4 {[%emt 0:00:28]} Rf4+ {[%emt 0:00:03]} 58. Kxh5 {[%emt 0:00:02]} Rxc4 {[%emt 0:00:01]} 59. Kg5 {[%emt 0:00:07]} Rc1 {[%emt 0:00:07]} 60. h4 {[%emt 0:00:15]} Rg1+ {[%emt 0:00:06]} 61. Kh6 {[%emt 0:00:02]} Rg2 {[%emt 0:00:42]} 62. h5 {[%emt 0:00:44]} Rh2 {[%emt 0:00:10]} 63. Kg6 {[%emt 0:00:09]} Rg2+ {[%emt 0:00:03]} 64. Kh7 {[%emt 0:00:06]} Rh2 {[%emt 0:00:16]} 65. h6 {[%emt 0:00:31]} Rg2 {[%emt 0:00:05]} 66. Kh8 {[%emt 0:00:02]} Rg1 {[%emt 0:00:15]} 67. h7 {[%emt 0:00:01]} Rg2 {[%emt 0:00:02]} 68. Rf3 {[%emt 0:00:10]} Kxe5 {[%emt 0:00:09]} 69. Rf7 {[%emt 0:00:06]} Ke6 {[%emt 0:00:05]} 70. Rg7 {[%emt 0:00:12]} Ra2 {[%emt 0:00:02]} 71. Rg6+ {[%emt 0:00:20]} Kf7 {[%emt 0:00:08]} 72. Rg7+ {[%emt 0:00:06]} Kf6 {[%emt 0:00:02]} 73. Rg8 {[%emt 0:00:13]} Kf7 {[%emt 0:00:05]} 74. Rb8 {[%emt 0:00:04]} Ra7 {[%emt 0:00:11]} 75. Rb1 {[%emt 0:00:18]} Ra8+ {[%emt 0:00:02]} 0-1

[Event "European Women Rapid-ch 2023"]
[Site "Monaco"]
[Date "2024.01.13"]
[Round "4.24"]
[White "Haussernot, Cecile"]
[Black "Lezhepekova, Veronika"]
[Result "1-0"]
[ECO "B24"]
[WhiteElo "2136"]
[BlackElo "1935"]
[Annotator "TA"]
[PlyCount "57"]
[EventDate "2023.12.19"]
[EventType "swiss"]
[EventCountry "MNC"]
[SourceTitle "playchess.com"]
[Source "ChessBase"]
[SourceQuality "1"]
[TimeControl "900+10"]

{[%evp 9,57,19,16,20,25,0,1,0,10,0,41,13,52,22,48,31,91,90,156,134,136,114,122,110,232,164,162,168,245,213,264,276,276,274,268,268,598,597,563,455,560,561,547,531,609,583,1061,1060,1028,956]} 1. e4 {[%emt 0:00:03]} c5 {[%emt 0:00:01]} 2. Nc3 {[%emt 0:00:12]} a6 {[%emt 0:00:05]} 3. Nge2 {[%emt 0:00:06]} Nc6 {[%emt 0:00:04]} 4. g3 {[%emt 0:00:29]} g6 {[%emt 0:00:05]} 5. Bg2 {[%emt 0:00:11]} Bg7 {[%emt 0:00:02]} 6. O-O {[%emt 0:00:02]} d6 {[%emt 0:00:06]} 7. f4 {[%emt 0:00:16]} Bd7 {[%emt 0:00:40]} 8. d3 {[%emt 0:00:12] The position is equal.} Nf6 {[%emt 0:00:09]} 9. h3 {[%emt 0:00:15]} Qc7 {[%emt 0:01:50]} 10. Be3 {[%emt 0:00:15]} b5 {[%emt 0:00:38]} 11. Qd2 {[%emt 0:02:26][%cal Oe4e5]} Rc8 {[%emt 0:00:45]} 12. g4 {[%emt 0:00:23]} Ng8 {[%emt 0:01:16]} ({Better is} 12... b4 $14) 13. f5 {[%emt 0:00:17]} Nd4 {[%emt 0:00:45]} ({Black should play} 13... Qd8) 14. Nd5 {[%emt 0:00:21]} Qd8 {[%emt 0:00:01]} 15. c3 {[%emt 0:00:30] White is more active.} Nxe2+ {[%emt 0:00:02]} 16. Qxe2 {[%emt 0:00:01] Threatens to win with g5.} Bc6 {[%emt 0:01:29] This costs Black the game.} (16... Nf6 $16) 17. fxg6 {[%emt 0:00:43]} hxg6 {[%emt 0:00:29]} 18. Qf3 $36 {[%emt 0:00:09][%mdl 2048] White is really pushing.} Bxd5 {[%emt 0:00:29]} (18... f6 $142 19. Rad1 Bxd5) 19. exd5 $18 {[%emt 0:00:02]} f6 {[%emt 0:02:29][%cal Bf7f6,Bf6f5][%mdl 32] Black is weak on the light squares} 20. Qe4 {[%emt 0:00:10]} f5 {[%emt 0:00:17]} 21. Qe6 {[%emt 0:00:39]} ({Much less strong is} 21. gxf5 g5 22. Bxg5 Be5 $18) 21... Nf6 {[%emt 0:00:43] [#]} 22. g5 $1 {[%emt 0:00:05]} ({Don't play} 22. gxf5 $6 Qd7 23. fxg6 Qxe6 24. dxe6 Bh6 $18) 22... Nh5 $2 {[%emt 0:00:02]} (22... Qd7 23. gxf6 Bxf6) 23. Qxg6+ {[%emt 0:00:32] White is clearly winning.} Kd7 {[%emt 0:00:01]} 24. a4 {[%emt 0:02:24]} Ng3 {[%emt 0:01:06]} 25. Rf3 {[%emt 0:00:17]} Be5 {[%emt 0:00:02]} 26. axb5 {[%emt 0:00:33]} axb5 {[%emt 0:00:39]} 27. Qe6+ {[%emt 0:00:27]} Ke8 {[%emt 0:00:33]} 28. g6 {[%emt 0:00:26]} Qd7 {[%emt 0:00:31]} 29. Qf7+ {[%emt 0:01:01] Weighted Error Value: White=0.24 (precise) /Black=0.63.  Mistake:       	---       	Black=5      Inaccurate:     	White=2     	Black=4      OK:         	White=5     	Black=5      Best:        	---       	Black=2      Strong:       	White=1     	---} 1-0

[Event "European Women Rapid-ch 2023"]
[Site "Monaco"]
[Date "2024.01.13"]
[Round "4.25"]
[White "Krasteva, Beloslava"]
[Black "Uta, Adeline-Ramona"]
[Result "1-0"]
[ECO "E90"]
[WhiteElo "2251"]
[BlackElo "2036"]
[Annotator "ChessBase"]
[PlyCount "65"]
[EventDate "2023.12.19"]
[EventType "swiss"]
[EventCountry "MNC"]
[SourceTitle "playchess.com"]
[Source "ChessBase"]
[SourceQuality "1"]
[TimeControl "900+10"]

1. d4 {[%emt 0:00:02]} Nf6 {[%emt 0:00:02]} 2. c4 {[%emt 0:00:02]} g6 {[%emt 0:00:01]} 3. Nc3 {[%emt 0:00:02]} Bg7 {[%emt 0:00:02]} 4. e4 {[%emt 0:00:02]} d6 {[%emt 0:00:01]} 5. h3 {[%emt 0:00:03]} Na6 {[%emt 0:00:12]} 6. Nf3 {[%emt 0:00:32]} O-O {[%emt 0:00:17]} 7. Be3 {[%emt 0:00:03]} c6 {[%emt 0:00:23]} 8. Be2 {[%emt 0:00:52]} Qa5 {[%emt 0:01:24]} 9. O-O {[%emt 0:00:31]} e5 {[%emt 0:00:12]} 10. d5 {[%emt 0:00:31]} cxd5 {[%emt 0:02:17]} 11. cxd5 {[%emt 0:00:03]} Nc5 {[%emt 0:01:06]} 12. Nd2 {[%emt 0:00:13]} a6 {[%emt 0:00:50]} 13. a3 {[%emt 0:01:13]} Qd8 {[%emt 0:01:35]} 14. b4 {[%emt 0:00:10]} Ncd7 {[%emt 0:00:03]} 15. Nc4 {[%emt 0:00:20]} Qe7 {[%emt 0:00:07]} 16. Rc1 {[%emt 0:00:56]} Ne8 {[%emt 0:00:33]} 17. Qd2 {[%emt 0:01:17]} f5 {[%emt 0:00:15]} 18. exf5 {[%emt 0:00:55]} gxf5 {[%emt 0:00:16]} 19. f4 {[%emt 0:00:03]} e4 {[%emt 0:01:43]} 20. Bd4 {[%emt 0:00:28]} Ndf6 {[%emt 0:01:24]} 21. Ne3 {[%emt 0:00:39]} Bh6 {[%emt 0:00:33]} 22. Na4 {[%emt 0:00:39]} Bd7 {[%emt 0:00:16]} 23. Nb6 {[%emt 0:00:05]} Rd8 {[%emt 0:00:08]} 24. Qe1 {[%emt 0:02:53]} Qf7 {[%emt 0:01:09]} 25. Qh4 {[%emt 0:00:23]} Qg6 {[%emt 0:00:04]} 26. Kh1 {[%emt 0:00:34]} Bb5 {[%emt 0:00:25]} 27. Bxb5 {[%emt 0:00:29]} axb5 {[%emt 0:00:01]} 28. g4 {[%emt 0:00:19]} fxg4 {[%emt 0:01:20]} 29. hxg4 {[%emt 0:00:03]} Bg7 {[%emt 0:00:06]} 30. Nf5 {[%emt 0:02:07]} Rf7 {[%emt 0:01:03]} 31. Rg1 {[%emt 0:00:59]} Rb8 {[%emt 0:02:02]} 32. Nxg7 {[%emt 0:00:32]} Nxg7 {[%emt 0:00:18]} 33. f5 {[%emt 0:00:13]} 1-0

[Event "European Women Rapid-ch 2023"]
[Site "Monaco"]
[Date "2024.01.13"]
[Round "4.26"]
[White "Rodriguez Redondo, Adhara"]
[Black "Khurtsilava, Inga"]
[Result "1-0"]
[ECO "B01"]
[WhiteElo "2130"]
[BlackElo "2186"]
[Annotator "TA"]
[PlyCount "62"]
[EventDate "2023.12.19"]
[EventType "swiss"]
[EventCountry "MNC"]
[SourceTitle "playchess.com"]
[Source "ChessBase"]
[SourceQuality "1"]
[TimeControl "900+10"]

{[%evp 9,62,26,32,24,24,13,24,15,44,18,43,8,47,10,14,0,0,0,7,0,0,0,0,0,14,8,17,2,16,12,63,37,45,38,38,37,37,25,25,35,38,39,30,33,38,33,27,0,0,0,39,64,62,43,46]} 1. e4 {[%emt 0:00:01]} d5 {[%emt 0:00:02]} 2. exd5 {[%emt 0:00:02]} Qxd5 {[%emt 0:00:01]} 3. Nc3 {[%emt 0:00:01]} Qd8 {[%emt 0:00:01]} 4. h3 {[%emt 0:00:34]} Nf6 {[%emt 0:00:03]} 5. Nf3 {[%emt 0:00:03]} Bf5 {[%emt 0:00:13]} 6. Bc4 {[%emt 0:00:29]} e6 {[%emt 0:00:02]} 7. O-O {[%emt 0:00:09]} c6 {[%emt 0:00:08]} 8. Re1 {[%emt 0:00:17] Weiß hat minimalen Vorteil.} Be7 {[%emt 0:00:01]} 9. d4 {[%emt 0:00:03]} O-O {[%emt 0:00:06]} 10. a4 {[%emt 0:00:16]} a5 {[%emt 0:00:21]} 11. Bf4 {[%emt 0:01:07]} Nbd7 {[%emt 0:00:02]} 12. Bd3 {[%emt 0:00:42]} Bxd3 {[%emt 0:00:41]} 13. Qxd3 {[%emt 0:00:02]} Re8 {[%emt 0:00:06]} 14. Ne4 {[%emt 0:02:10]} Nxe4 {[%emt 0:00:03]} 15. Qxe4 {[%emt 0:00:03]} Nf6 {[%emt 0:00:04]} 16. Qe2 {[%emt 0:00:10]} Qd5 {[%emt 0:00:25]} 17. c3 {[%emt 0:00:22]} b5 {[%emt 0:00:54]} 18. Qc2 {[%emt 0:00:25]} Nd7 {[%emt 0:02:10]} 19. b3 {[%emt 0:00:54]} Qh5 {[%emt 0:04:06]} (19... bxa4 $11 20. Rxa4 c5) 20. Ne5 {[%emt 0:00:48]} Nxe5 {[%emt 0:02:06]} 21. Rxe5 {[%emt 0:00:06]} Qg6 {[%emt 0:00:02]} 22. Qxg6 {[%emt 0:02:16]} hxg6 {[%emt 0:00:01]} 23. axb5 {[%emt 0:01:19]} Bd6 $1 {[%emt 0:03:19]} 24. bxc6 {[%emt 0:01:32]} Bxe5 {[%emt 0:00:03]} 25. Bxe5 $11 {[%emt 0:00:01][%mdl 4096] [#] Endspiel. Droht b4 und aus. KRR-KRB} ({Viel schlechter ist} 25. dxe5 Rec8 $17) 25... Rec8 {[%emt 0:00:29]} 26. c7 {[%emt 0:00:06]} f6 {[%emt 0:00:06]} 27. Bd6 {[%emt 0:00:08]} Ra6 {[%emt 0:00:11]} 28. Bb4 {[%emt 0:00:50]} Rxc7 {[%emt 0:01:13]} 29. Bxa5 {[%emt 0:00:10]} Rxa5 {[%emt 0:01:07]} 30. Rxa5 {[%emt 0:00:02] [#] Und Rc5 würde nun gewinnen.} Rxc3 {[%emt 0:00:01]} 31. Rb5 {[%emt 0:00:16]} Rc1+ {[%emt 0:00:03] Gewichteter Fehlerwert: Weiß=0.11 (sehr präzise) /Schwarz=0.09 (makellos) .  Fehler:       	---       	Schwarz=1     Ungenau:       	Weiß=5     	Schwarz=3     OK:         	Weiß=8     	Schwarz=11    Bester:       	---       	Schwarz=1     Stark:        	---       	Schwarz=1} 1-0

[Event "European Women Rapid-ch 2023"]
[Site "Monaco"]
[Date "2024.01.13"]
[Round "4.27"]
[White "Cramling, Pia"]
[Black "Cornileau, Juliette"]
[Result "1-0"]
[ECO "D23"]
[WhiteElo "2437"]
[BlackElo "2007"]
[Annotator "ChessBase"]
[PlyCount "107"]
[EventDate "2023.12.19"]
[EventType "swiss"]
[EventCountry "MNC"]
[SourceTitle "playchess.com"]
[Source "ChessBase"]
[SourceQuality "1"]
[TimeControl "900+10"]

1. Nf3 {[%emt 0:00:02]} d5 {[%emt 0:00:07]} 2. d4 {[%emt 0:00:02]} Nf6 {[%emt 0:00:02]} 3. c4 {[%emt 0:00:01]} c6 {[%emt 0:00:03]} 4. Qb3 {[%emt 0:00:02]} dxc4 {[%emt 0:00:14]} 5. Qxc4 {[%emt 0:00:02]} Bf5 {[%emt 0:00:03]} 6. g3 {[%emt 0:00:06]} e6 {[%emt 0:00:08]} 7. Bg2 {[%emt 0:00:02]} Be7 {[%emt 0:00:07]} 8. O-O {[%emt 0:00:07]} O-O {[%emt 0:00:06]} 9. e3 {[%emt 0:00:16]} Nbd7 {[%emt 0:00:27]} 10. Rd1 {[%emt 0:00:07]} Ne4 {[%emt 0:01:14]} 11. Qe2 {[%emt 0:00:30]} Qc7 {[%emt 0:00:33]} 12. Ne1 {[%emt 0:01:31]} Rfd8 {[%emt 0:02:27]} 13. f3 {[%emt 0:00:55]} Nef6 {[%emt 0:00:16]} 14. e4 {[%emt 0:00:09]} Bg6 {[%emt 0:00:02]} 15. Nc3 {[%emt 0:00:10]} e5 {[%emt 0:01:08]} 16. Nc2 {[%emt 0:00:35]} b5 {[%emt 0:01:30]} 17. Be3 {[%emt 0:01:11]} exd4 {[%emt 0:01:34]} 18. Nxd4 {[%emt 0:00:04]} Nb6 {[%emt 0:01:15]} 19. Rac1 {[%emt 0:02:43]} Nc4 {[%emt 0:00:41]} 20. Bf2 {[%emt 0:00:07]} Bc5 {[%emt 0:02:03]} 21. b3 {[%emt 0:03:10]} Qb6 {[%emt 0:00:31]} 22. bxc4 {[%emt 0:00:34]} Bxd4 {[%emt 0:00:11]} 23. cxb5 {[%emt 0:01:11]} cxb5 {[%emt 0:01:58]} 24. Rxd4 {[%emt 0:00:32]} Rxd4 {[%emt 0:00:01]} 25. Nxb5 {[%emt 0:00:11]} Rd2 {[%emt 0:00:42]} 26. Qxd2 {[%emt 0:00:27]} Qxb5 {[%emt 0:00:01]} 27. Bf1 {[%emt 0:00:54]} Qb7 {[%emt 0:00:13]} 28. Qc2 {[%emt 0:00:16]} h6 {[%emt 0:01:51]} 29. Qc6 {[%emt 0:00:04]} Qxc6 {[%emt 0:00:09]} 30. Rxc6 {[%emt 0:00:02]} Nd7 {[%emt 0:00:07]} 31. Rc7 {[%emt 0:00:07]} Ne5 {[%emt 0:00:05]} 32. Be2 {[%emt 0:00:18]} Rd8 {[%emt 0:00:29]} 33. Be3 {[%emt 0:00:15]} a5 {[%emt 0:00:11]} 34. Rc5 {[%emt 0:00:11]} Nd3 {[%emt 0:00:02]} 35. Rxa5 {[%emt 0:00:06]} Nb4 {[%emt 0:00:17]} 36. Bf4 {[%emt 0:01:02]} Rc8 {[%emt 0:00:10]} 37. a3 {[%emt 0:00:33]} Na2 {[%emt 0:00:02]} 38. Bd1 {[%emt 0:00:46]} Rc3 {[%emt 0:00:12]} 39. Kf2 {[%emt 0:00:29]} Nc1 {[%emt 0:00:08]} 40. Bxc1 {[%emt 0:00:07]} Rxc1 {[%emt 0:00:02]} 41. Be2 {[%emt 0:00:10]} f6 {[%emt 0:00:13]} 42. Ra8+ {[%emt 0:00:07]} Kh7 {[%emt 0:00:06]} 43. a4 {[%emt 0:00:05]} Bf7 {[%emt 0:00:15]} 44. a5 {[%emt 0:00:01]} Rc2 {[%emt 0:00:08]} 45. Ke3 {[%emt 0:00:01]} Rc3+ {[%emt 0:00:19]} 46. Kd2 {[%emt 0:00:08]} Ra3 {[%emt 0:00:01]} 47. a6 {[%emt 0:00:03]} f5 {[%emt 0:00:23]} 48. exf5 {[%emt 0:00:28]} Bd5 {[%emt 0:00:03]} 49. Rd8 {[%emt 0:00:05]} Bc6 {[%emt 0:00:18]} 50. Rd6 {[%emt 0:00:08]} Bxf3 {[%emt 0:00:10]} 51. Bxf3 {[%emt 0:00:09]} Rxf3 {[%emt 0:00:03]} 52. a7 {[%emt 0:00:04]} Ra3 {[%emt 0:00:04]} 53. Rd7 {[%emt 0:00:01]} h5 {[%emt 0:00:08]} 54. f6 {[%emt 0:00:01]} 1-0

[Event "European Women Rapid-ch 2023"]
[Site "Monaco"]
[Date "2024.01.13"]
[Round "5.1"]
[White "Batsiashvili, Nino"]
[Black "Khademalsharieh, Sarasadat"]
[Result "1/2-1/2"]
[ECO "D31"]
[WhiteElo "2451"]
[BlackElo "2486"]
[Annotator "RC"]
[PlyCount "109"]
[EventDate "2023.12.19"]
[EventType "swiss"]
[EventCountry "MNC"]
[SourceTitle "playchess.com"]
[Source "ChessBase"]
[SourceQuality "1"]
[TimeControl "900+10"]

1. d4 {[%emt 0:00:02]} d5 {[%emt 0:00:02]} 2. c4 {[%emt 0:00:03]} e6 {[%emt 0:00:02]} 3. Nc3 {[%emt 0:00:29]} a6 {[%emt 0:00:01]} 4. cxd5 {[%emt 0:01:13]} exd5 {[%emt 0:00:02]} 5. Bf4 {[%emt 0:00:47]} Nf6 {[%emt 0:00:21]} 6. e3 {[%emt 0:00:18]} Bd6 {[%emt 0:00:09]} 7. Bxd6 {[%emt 0:00:54]} Qxd6 {[%emt 0:00:03]} 8. Bd3 {[%emt 0:00:01]} O-O {[%emt 0:00:33]} 9. Nge2 {[%emt 0:00:03]} Re8 {[%emt 0:00:37]} 10. Qc2 {[%emt 0:00:33]} b6 {[%emt 0:00:39]} 11. Rc1 {[%emt 0:00:43]} c5 {[%emt 0:00:21]} 12. O-O {[%emt 0:00:50]} Nc6 {[%emt 0:01:10]} 13. h3 {[%emt 0:01:56]} c4 {[%emt 0:00:44]} 14. Bf5 {[%emt 0:00:07]} Nb4 {[%emt 0:00:01]} 15. Qb1 {[%emt 0:00:01]} Bxf5 {[%emt 0:00:14]} 16. Qxf5 {[%emt 0:00:01]} Nd3 {[%emt 0:00:01]} 17. Rc2 {[%emt 0:00:12]} b5 {[%emt 0:00:02]} 18. a3 {[%emt 0:00:13]} Rab8 {[%emt 0:01:05]} 19. g4 {[%emt 0:00:35]} g6 {[%emt 0:00:33]} 20. Qf3 {[%emt 0:00:03]} a5 {[%emt 0:01:02]} 21. g5 {[%emt 0:01:47]} Ne4 {[%emt 0:00:19]} 22. Nxe4 {[%emt 0:00:02]} dxe4 {[%emt 0:00:27]} 23. Qg3 {[%emt 0:00:01]} Qd5 {[%emt 0:00:25]} 24. Nf4 {[%emt 0:01:00]} Qf5 {[%emt 0:00:53]} 25. h4 {[%emt 0:01:27]} Rbc8 {[%emt 0:01:15]} 26. Re2 {[%emt 0:01:33]} b4 {[%emt 0:00:48]} 27. axb4 {[%emt 0:00:06]} axb4 {[%emt 0:00:02]} 28. f3 {[%emt 0:00:31]} Nxf4 {[%emt 0:00:59]} 29. Qxf4 {[%emt 0:00:15]} Qxf4 {[%emt 0:00:31]} 30. exf4 {[%emt 0:00:01]} exf3 {[%emt 0:02:23]} 31. Rxe8+ {[%emt 0:01:23]} Rxe8 {[%emt 0:00:01]} 32. Rc1 Re2 {[%emt 0:00:33]} 33. Rxc4 {[%emt 0:00:02]} Rxb2 {[%emt 0:00:01]} 34. Rc8+ {[%emt 0:00:14]} Kg7 {[%emt 0:00:01]} 35. Rb8 {[%emt 0:00:08]} b3 {[%emt 0:00:22]} 36. d5 {[%emt 0:00:01]} Rg2+ {[%emt 0:01:43]} 37. Kf1 {[%emt 0:00:01]} b2 {[%emt 0:00:36]} 38. d6 {[%emt 0:00:01]} Rd2 {[%emt 0:00:14]} 39. d7 {[%emt 0:00:05]} Rxd7 {[%emt 0:00:04]} 40. Kf2 {[%emt 0:01:38]} Rd2+ {[%emt 0:01:04]} 41. Kxf3 {[%emt 0:00:02]} h5 {[%emt 0:00:11]} 42. Ke3 {[%emt 0:00:21]} Rh2 {[%emt 0:00:10]} 43. Ke4 {[%emt 0:00:57]} Rxh4 {[%emt 0:00:42]} 44. Rxb2 {[%emt 0:00:01]} Rh3 {[%emt 0:00:01]} 45. f5 {[%emt 0:00:48]} gxf5+ {[%emt 0:00:24]} 46. Kxf5 {[%emt 0:00:02]} Rf3+ {[%emt 0:00:01]} 47. Ke4 {[%emt 0:00:04]} Rf1 {[%emt 0:00:04]} 48. Rb6 {[%emt 0:00:04]} h4 {[%emt 0:00:27]} 49. Rh6 {[%emt 0:00:04]} f5+ {[%emt 0:00:31]} 50. Ke5 {[%emt 0:00:20]} f4 {[%emt 0:00:17]} 51. Rxh4 {[%emt 0:00:11]} f3 {[%emt 0:00:01]} 52. Kf4 {[%emt 0:00:25]} f2 {[%emt 0:00:10]} 53. Kg3 {[%emt 0:00:08]} Kg6 {[%emt 0:00:03]} 54. Rf4 {[%emt 0:00:05]} Kxg5 {[%emt 0:00:03]} 55. Rxf2 {[%emt 0:00:01]} 1/2-1/2